bitfinex-derivatives/quotes_ETHF0:USTF0_20250830
["timestamp","ask_amount","ask_price","bid_price","bid_amount"]
[1756522276826,4.4239,4316.3,4316.2,1.1767]
[1756522277524,4.4239,4316.3,4316.2,1.4127]
[1756522279932,1.2161,4316.3,4316.2,1.4127]
[1756522281944,1.4277863,4316.3,4316.2,1.4127]
[1756522282532,1.2161,4316.3,4316.2,1.4127]
[1756522282734,1.42775647,4316.3,4316.0,0.236]
[1756522282929,1.42775647,4316.2,4316.1,0.7143]
[1756522283331,1.42772405,4316.2,4315.4,0.7143]
[1756522283537,1.2161,4316.0,4315.5,0.236]
[1756522283738,0.7431,4315.8,4315.6,0.4624]
[1756522283930,3.2078,4316.3,4315.7,0.4624]
[1756522284132,1.2161,4315.8,4315.7,1.4127]
[1756522284435,0.68462639,4315.8,4315.3,0.7143]
[1756522284637,1.2161,4315.5,4315.4,1.4127]
[1756522285033,1.2161,4315.5,4315.4,1.1767]
[1756522285235,1.2161,4315.5,4315.4,1.4127]
[1756522288545,1.42764944,4315.5,4315.4,1.4117]
[1756522288743,0.21154944,4315.5,4315.4,1.4117]
[1756522289043,0.7431,4315.9,4315.8,0.4624]
[1756522289245,0.95463955,4315.9,4315.8,1.1767]
[1756522289443,1.42763955,4315.9,4315.8,1.1767]
[1756522290941,0.21153955,4315.9,4315.8,1.1767]
[1756522292645,0.68453955,4315.9,4315.8,1.1767]
[1756522292845,1.42763955,4315.9,4315.8,1.1767]
[1756522293348,0.69030821,4315.9,4315.8,0.6974]
[1756522293554,1.43340821,4315.9,4315.8,1.4117]
[1756522293853,1.43340821,4315.9,4315.8,1.1767]
[1756522294352,1.43340821,4315.9,4315.8,0.235]
[1756522294954,1.43340821,4315.9,4315.5,0.7143]
[1756522295152,1.2161,4315.6,4315.5,1.1767]
[1756522295452,1.43340821,4315.6,4315.5,1.4117]
[1756522296155,1.43340821,4315.6,4315.5,1.1767]
[1756522296350,1.43340821,4315.6,4315.5,1.4117]
[1756522296852,1.43342479,4315.6,4315.5,1.4117]
[1756522297155,0.69032479,4315.6,4315.5,1.4117]
[1756522298047,1.37732479,4315.6,4315.5,1.4117]
[1756522301257,0.21732479,4315.6,4315.5,6.06046]
[1756522301464,0.687,4316.9,4316.0,0.41699]
[1756522301668,1.1835,4316.9,4316.8,0.4582]
[1756522301964,1.1835,4316.9,4316.8,1.1281]
[1756522304464,1.80874476,4316.9,4316.8,1.1281]
[1756522305460,1.1835,4316.9,4316.8,1.1281]
[1756522305662,1.8087365,4316.9,4316.8,1.1281]
[1756522305968,1.1835,4316.9,4316.8,1.1281]
[1756522306166,1.80873395,4316.9,4316.8,1.1281]
[1756522306365,1.1835,4316.9,4316.8,1.1281]
[1756522306971,1.80870291,4316.9,4316.8,1.1281]
[1756522307365,1.1835,4316.9,4316.8,1.1281]
[1756522309368,0.687,4316.3,4315.8,0.6699]
[1756522309571,0.4965,4315.6,4315.5,1.3631]
[1756522310068,0.687,4315.9,4315.5,1.3631]
[1756522310267,0.687,4316.4,4315.6,0.6699]
[1756522311569,1.1835,4316.4,4316.3,1.1281]
[1756522313469,1.39907178,4316.4,4316.3,1.1281]
[1756522314372,1.39907178,4316.4,4315.5,0.235]
[1756522314573,0.21556212,4316.3,4315.7,0.6699]
[1756522314766,1.1835,4316.1,4316.0,0.4582]
[1756522314966,1.3990647,4316.1,4316.0,1.1281]
[1756522315973,1.3990647,4316.1,4316.0,1.3631]
[1756522317669,1.3990647,4316.1,4316.0,1.1281]
[1756522317972,1.3990647,4316.1,4316.0,1.3631]
[1756522324076,1.39744494,4316.1,4316.0,1.3631]
[1756522325271,0.71044494,4316.1,4316.0,1.3631]
[1756522325473,0.21394494,4316.1,4316.0,1.3631]
[1756522329979,0.20356667,4316.1,4316.0,1.382]
[1756522330976,0.20359499,4316.1,4316.0,1.382]
[1756522331480,1.34739499,4316.1,4316.0,1.382]
[1756522331985,1.34739499,4316.1,4316.0,1.147]
[1756522332175,1.34739499,4316.1,4316.0,1.382]
[1756522333274,1.34739499,4316.1,4316.0,1.147]
[1756522333476,1.34739499,4316.1,4316.0,1.382]
[1756522333676,1.34739499,4316.1,4316.0,1.147]
[1756522333882,1.34739499,4316.1,4316.0,0.235]
[1756522334487,1.34739499,4316.1,4314.7,33.384]
[1756522334488,1.1438,4315.4,4315.3,1.1799]
[1756522334785,1.34745323,4315.4,4315.3,1.4149]
[1756522335987,0.20365323,4315.4,4315.3,1.4149]
[1756522340688,0.20365323,4315.4,4315.3,1.1799]
[1756522340890,0.20365323,4315.4,4315.3,1.4149]
[1756522340891,1.34745323,4315.4,4315.3,1.4149]
[1756522344882,1.1438,4315.4,4315.3,1.4149]
[1756522345184,1.34722939,4315.4,4315.3,1.4149]
[1756522349187,1.34722939,4315.4,4315.3,1.1799]
[1756522349385,1.34722939,4315.4,4315.3,1.4149]
[1756522350893,1.34722939,4315.4,4315.3,1.1799]
[1756522351096,1.34722939,4315.4,4315.3,1.4149]
[1756522353896,1.34722939,4315.4,4315.3,1.1799]
[1756522354098,1.34722939,4315.4,4315.3,1.4149]
[1756522354793,1.34722939,4315.4,4315.3,0.235]
[1756522354996,1.34722939,4315.4,4314.8,1.1799]
[1756522354997,1.1438,4314.9,4314.8,1.1799]
[1756522355309,1.1438,4314.9,4312.7,1.04327]
[1756522355310,1.1438,4314.8,4313.6,3.30073384]
[1756522355494,0.20342939,4314.9,4313.6,3.30073384]
[1756522355495,0.6834,4314.6,4313.7,0.235]
[1756522355796,1.34529899,4314.5,4314.4,1.1799]
[1756522356300,1.34529512,4314.5,4314.4,1.4149]
[1756522356503,1.34529512,4314.5,4313.6,0.6888]
[1756522356504,0.6834,4314.4,4313.6,0.6888]
[1756522356693,1.1438,4314.2,4314.1,0.4911]
[1756522357003,1.34529512,4314.2,4314.1,1.1938]
[1756522358201,0.4381,4313.0,4312.9,1.1692]
[1756522358402,1.32349512,4313.0,4312.9,1.4042]
[1756522359899,8.07925512,4313.0,4312.1,0.7027]
[1756522360100,1.122,4312.2,4312.1,1.1692]
[1756522360298,1.122,4312.2,4312.1,1.4042]
[1756522360601,1.32305998,4312.2,4312.1,1.4042]
[1756522361201,1.122,4312.2,4312.1,1.4042]
[1756522362101,1.122,4312.2,4312.1,1.1692]
[1756522362303,1.122,4312.2,4312.1,1.4042]
[1756522362500,1.122,4312.2,4312.1,1.1692]
[1756522362700,0.4381,4311.6,4311.3,3.2078]
[1756522362906,0.6839,4311.4,4311.1,0.7027]
[1756522363102,0.4381,4311.2,4311.1,1.1692]
[1756522363300,1.122,4311.2,4311.1,1.1692]
[1756522363895,1.122,4311.2,4311.1,0.7015]
[1756522364106,1.122,4311.2,4311.1,0.235]
[1756522364306,4.3298,4311.2,4311.1,0.235]
[1756522364509,4.53015846,4311.2,4311.1,0.235]
[1756522365009,4.3298,4311.2,4311.1,0.235]
[1756522366107,4.3298,4311.2,4311.1,1.4042]
[1756522367907,4.3298,4311.2,4310.2,33.385]
[1756522368119,0.4381,4309.8,4309.7,1.1692]
[1756522368312,1.122,4309.8,4309.7,1.4042]
[1756522369711,0.6839,4310.5,4309.7,0.7015]
[1756522369910,0.6839,4310.5,4309.8,0.7027]
[1756522371423,1.122,4310.5,4310.4,1.1692]
[1756522372122,0.4381,4311.0,4310.9,0.4665]
[1756522372322,1.122,4311.0,4310.9,1.1692]
[1756522373921,1.122,4311.0,4310.6,0.235]
[1756522374225,1.122,4311.0,4310.6,0.9377]
[1756522374427,0.4381,4310.8,4310.7,1.1692]
[1756522374725,1.122,4310.8,4310.7,1.1692]
[1756522375529,0.4381,4310.8,4310.7,1.1692]
[1756522375820,3.2078,4311.1,4310.7,1.1692]
[1756522376016,3.2078,4311.1,4310.5,0.235]
[1756522376017,4.3298,4311.1,4311.0,0.4665]
[1756522376216,4.3298,4311.1,4311.0,1.1692]
[1756522377621,3.2078,4311.1,4311.0,1.1692]
[1756522377823,0.4381,4311.8,4311.7,1.1692]
[1756522378028,1.122,4311.8,4311.7,1.1692]
[1756522378324,1.122,4311.8,4311.7,0.4665]
[1756522379025,1.122,4311.8,4311.7,1.1692]
[1756522381822,1.122,4311.8,4311.3,0.235]
[1756522382014,0.4381,4311.8,4311.4,0.7027]
[1756522382220,0.4381,4311.8,4311.7,1.1692]
[1756522382632,1.122,4311.8,4311.7,1.1692]
[1756522382823,1.32388446,4311.8,4311.7,1.1692]
[1756522383024,1.32388446,4311.8,4311.7,0.4665]
[1756522383424,1.32388446,4311.8,4311.7,1.1692]
[1756522383825,0.20188446,4311.8,4311.7,1.1692]
[1756522384029,1.122,4312.3,4312.2,0.4665]
[1756522384332,1.32408485,4312.3,4312.2,0.4665]
[1756522384529,1.32408485,4312.3,4312.2,1.1692]
[1756522385234,1.94638469,4312.3,4312.2,1.1692]
[1756522385832,0.20208485,4312.3,4312.2,1.1692]
[1756522386131,0.64056367,4312.3,4312.2,1.1692]
[1756522386829,3.2078,4313.1,4312.2,4.9346]
[1756522387134,0.20263593,4313.0,4312.9,0.87439]
[1756522387335,0.20263593,4313.0,4312.9,5.10939]
[1756522387633,0.20263593,4313.0,4312.9,5.99415]
[1756522388828,0.20263593,4313.0,4312.9,5.76229]
[1756522389842,1.1521,4311.8,4311.7,1.11]
[1756522390134,0.20290494,4311.8,4311.7,1.11]
[1756522392337,0.20290494,4311.8,4311.7,1.347]
[1756522393333,0.66694274,4312.3,4312.2,0.4571]
[1756522393638,1.35504323,4312.3,4312.2,1.11]
[1756522393836,0.6881,4312.2,4311.3,0.6529]
[1756522394031,3.2078,4311.8,4311.7,0.4571]
[1756522394332,0.20294323,4311.8,4311.7,1.11]
[1756522394530,0.20294323,4311.8,4311.7,0.4571]
[1756522395138,0.20294323,4311.8,4311.7,1.11]
[1756522396634,1.1521,4311.2,4311.1,1.11]
[1756522396833,0.20293884,4311.2,4311.1,1.11]
[1756522397537,1.35509253,4311.2,4311.1,1.349]
[1756522398740,1.1521,4311.1,4311.0,1.11]
[1756522398940,1.35509253,4311.1,4311.0,1.11]
[1756522401937,0.66699253,4311.1,4311.0,1.11]
[1756522402145,0.20299253,4311.1,4311.0,1.11]
[1756522402436,0.89109253,4311.4,4311.0,0.4571]
[1756522402633,0.20299253,4311.3,4311.0,0.4571]
[1756522403140,0.20299253,4311.2,4311.1,1.11]
[1756522403446,1.35509253,4311.2,4311.1,1.349]
[1756522406048,1.35509253,4311.2,4311.1,0.239]
[1756522406547,1.35509253,4311.2,4311.1,1.349]
[1756522407234,1.35558129,4311.2,4311.1,1.349]
[1756522407837,0.66748129,4311.2,4311.1,1.349]
[1756522408043,0.20348129,4311.2,4311.1,1.349]
[1756522408247,1.35558129,4311.2,4311.1,1.349]
[1756522408848,1.35558129,4311.2,4311.1,0.239]
[1756522409546,1.35558129,4311.2,4311.1,0.6961]
[1756522409842,1.35558129,4311.2,4311.1,1.11]
[1756522410047,0.6881,4311.1,4311.0,0.238]
[1756522410248,0.6881,4311.1,4310.6,3.8607]
[1756522410249,0.464,4310.7,4310.6,0.6529]
[1756522410441,1.35558129,4310.7,4310.6,0.238]
[1756522410949,1.35558129,4310.7,4310.6,1.348]
[1756522411441,0.20348129,4310.7,4310.6,1.348]
[1756522413343,1.35558129,4310.7,4310.6,1.348]
[1756522413544,1.35558129,4310.7,4310.6,1.11]
[1756522413748,1.35558129,4310.7,4310.6,1.348]
[1756522414951,1.35558129,4310.7,4310.6,1.11]
[1756522415148,1.35558129,4310.7,4310.6,1.348]
[1756522417645,1.1521,4310.7,4310.6,1.348]
[1756522417850,1.35548482,4310.7,4310.6,1.348]
[1756522418351,1.35548482,4310.7,4310.6,1.11]
[1756522421250,1.35548482,4310.7,4310.2,0.6272]
[1756522421457,1.1403,4310.4,4310.3,0.238]
[1756522421755,1.34368482,4310.4,4310.3,0.238]
[1756522421956,0.4503,4309.9,4309.8,1.0768]
[1756522422155,1.34368482,4309.9,4309.8,1.3148]
[1756522424056,1.34368482,4309.9,4309.8,1.0768]
[1756522424958,1.34368482,4309.9,4309.8,1.3148]
[1756522426056,1.34368482,4309.9,4309.7,33.404]
[1756522426357,0.89338482,4309.8,4309.7,33.404]
[1756522426563,0.89338482,4309.8,4309.7,33.642]
[1756522427359,1.34368482,4309.8,4309.7,0.238]
[1756522427752,1.34368482,4309.8,4309.5,0.238]
[1756522427956,1.1403,4309.6,4309.5,0.238]
[1756522428157,1.34403225,4309.6,4309.5,0.238]
[1756522428861,1.34403224,4309.6,4309.5,0.238]
[1756522429659,1.34403224,4309.6,4309.4,0.0028329]
[1756522429859,1.34403224,4309.5,4309.4,0.0028329]
[1756522430062,1.34403224,4309.5,4309.4,1.0796329]
[1756522433163,0.65403224,4309.5,4309.4,1.0796329]
[1756522433558,1.34403224,4309.5,4309.4,1.0796329]
[1756522433758,0.65403224,4309.5,4309.4,1.0796329]
[1756522433964,1.34403224,4309.5,4309.4,1.0796329]
[1756522435061,1.34380971,4309.5,4309.4,1.0796329]
[1756522435755,1.34380971,4309.5,4309.4,0.0028329]
[1756522435958,1.34380971,4309.5,4309.4,1.0796329]
[1756522436155,1.34380971,4309.5,4309.4,0.6300329]
[1756522436661,1.34380971,4309.5,4309.4,0.0028329]
[1756522438363,1.34380971,4309.5,4309.4,1.0796329]
[1756522438557,1.3438514,4309.5,4309.4,1.0796329]
[1756522438953,1.1403,4309.5,4309.4,1.0796329]
[1756522439257,1.34385091,4309.5,4309.4,1.0796329]
[1756522441074,0.65385091,4309.5,4309.4,1.0796329]
[1756522441268,0.65391461,4309.5,4309.4,1.0796329]
[1756522441969,1.34391461,4309.5,4309.4,1.0796329]
[1756522443873,0.65391461,4309.5,4309.4,1.0796329]
[1756522445572,1.34391461,4309.5,4309.4,1.0796329]
[1756522447976,1.34418803,4309.5,4309.4,1.0796329]
[1756522448766,1.1403,4309.5,4309.4,1.0796329]
[1756522448970,1.34424125,4309.5,4309.4,1.0796329]
[1756522450279,1.34439111,4309.5,4309.4,1.0796329]
[1756522451176,0.65439111,4309.5,4309.4,1.0796329]
[1756522451685,1.32189111,4309.5,4309.4,1.0796329]
[1756522455192,1.31171528,4309.5,4309.4,1.0796329]
[1756522458693,1.31186412,4309.5,4309.4,1.0796329]
[1756522460294,1.31186412,4309.5,4309.4,0.0028329]
[1756522462197,1.54886412,4309.5,4309.4,0.0028329]
[1756522463494,1.78091412,4309.5,4309.4,0.0028329]
[1756522463800,5.54886412,4309.5,4309.4,0.0028329]
[1756522464399,1.54886412,4309.5,4309.4,0.6611329]
[1756522464600,1.54886412,4309.5,4309.4,1.0839329]
[1756522464800,1.54886412,4309.5,4309.4,0.0028329]
[1756522465102,1.54786412,4309.5,4309.4,0.0028329]
[1756522466396,1.31186412,4309.5,4309.4,0.0028329]
[1756522469203,1.31188166,4309.5,4309.4,0.0028329]
[1756522469502,1.54788166,4309.5,4309.4,0.0028329]
[1756522469704,1.54787439,4309.5,4309.4,0.0028329]
[1756522470003,1.54787537,4309.5,4309.4,0.0028329]
[1756522472499,1.3538,4309.5,4309.4,0.0028329]
[1756522474504,1.3538,4309.5,4308.4,0.6583]
[1756522474806,1.1255,4308.5,4308.4,0.6583]
[1756522475005,1.1255,4308.5,4308.4,1.0811]
[1756522476597,1.1255,4308.5,4307.5,3.4438]
[1756522476802,1.1255,4308.5,4306.9,2.88351384]
[1756522476803,1.1255,4308.5,4307.7,0.6583]
[1756522477410,3.8427,4308.1,4308.0,1.0736]
[1756522479612,4.253,4308.6,4308.5,1.0991]
[1756522479806,1.0452,4308.6,4308.5,0.4483]
[1756522480311,1.0452,4308.6,4308.5,1.0991]
[1756522483914,0.236,4308.6,4307.2,0.6508]
[1756522484111,1.0452,4307.9,4307.8,0.4483]
[1756522484413,1.0452,4307.9,4307.8,1.0991]
[1756522485516,0.4103,4307.9,4307.8,1.0991]
[1756522487213,1.0452,4307.9,4307.8,1.0991]
[1756522489410,3.2078,4308.0,4307.8,1.0991]
[1756522489714,4.253,4308.0,4307.9,1.0991]
[1756522490519,3.8427,4308.0,4307.9,1.0991]
[1756522490712,4.253,4308.0,4307.9,1.0991]
[1756522500416,0.6349,4307.9,4307.2,0.236]
[1756522500622,0.6349,4307.9,4307.3,0.6508]
[1756522500824,1.0452,4307.9,4307.8,1.0991]
[1756522504326,1.0452,4307.9,4307.4,0.6508]
[1756522506417,1.0452,4307.9,4307.0,3.2078]
[1756522506625,0.6349,4307.0,4306.9,1.3351]
[1756522507525,3.2078,4308.0,4307.0,0.6452]
[1756522507526,0.6466,4307.9,4307.0,0.6452]
[1756522507730,1.0646,4307.9,4307.8,1.052]
[1756522507926,1.0646,4307.9,4307.4,0.6452]
[1756522508120,1.0646,4307.2,4307.1,1.052]
[1756522508325,1.0646,4307.2,4307.1,1.288]
[1756522510625,1.0646,4307.2,4307.1,1.052]
[1756522510824,1.0646,4307.2,4307.1,1.288]
[1756522511324,0.418,4307.2,4307.1,1.288]
[1756522511525,0.6466,4307.9,4307.2,0.6452]
[1756522512131,0.418,4307.3,4307.2,1.052]
[1756522512331,1.0646,4307.3,4307.2,1.052]
[1756522514840,0.418,4307.3,4307.2,1.052]
[1756522515643,1.0646,4307.3,4307.2,1.052]
[1756522515843,0.6466,4307.6,4307.2,1.052]
[1756522516045,0.6466,4307.9,4307.3,0.6452]
[1756522516346,0.418,4306.9,4306.8,1.052]
[1756522516546,1.0646,4306.9,4306.8,1.052]
[1756522517746,1.0646,4306.9,4306.8,0.6452]
[1756522518045,1.0646,4306.9,4306.8,1.052]
[1756522520441,1.0646,4306.9,4306.8,1.288]
[1756522520638,1.0646,4306.9,4306.8,1.052]
[1756522520945,1.0646,4306.9,4306.8,1.288]
[1756522521343,1.0646,4306.9,4306.5,3.2078]
[1756522521543,1.0646,4306.6,4306.5,3.6146]
[1756522521841,1.0646,4306.6,4306.5,3.8506]
[1756522522041,1.0646,4306.6,4306.5,4.4958]
[1756522522438,1.0646,4306.6,4306.5,4.2598]
[1756522522646,1.0646,4306.6,4306.5,4.4958]
[1756522523752,1.0646,4306.6,4306.5,4.2598]
[1756522523953,1.0646,4306.6,4306.5,4.4958]
[1756522525952,1.0646,4306.6,4306.5,4.2598]
[1756522526148,1.0646,4306.6,4306.5,1.288]
[1756522526453,1.0646,4306.6,4306.5,1.052]
[1756522526847,1.0646,4306.6,4306.5,1.288]
[1756522527552,0.6466,4306.5,4306.4,0.8812]
[1756522527856,1.0646,4306.5,4306.4,1.288]
[1756522530855,1.0646,4306.5,4305.2,2.88351384]
[1756522530856,1.0646,4305.5,4305.4,4.2598]
[1756522531158,1.0646,4305.5,4305.4,1.052]
[1756522532561,1.25786814,4305.5,4305.4,1.052]
[1756522533557,1.25786814,4305.5,4305.1,0.6452]
[1756522533859,1.0646,4305.2,4305.1,1.052]
[1756522534058,1.25786814,4305.2,4305.1,1.052]
[1756522534265,1.0646,4305.2,4305.1,1.288]
[1756522534557,1.25771108,4305.2,4305.1,0.236]
[1756522535150,1.25771108,4305.2,4305.0,0.00282739]
[1756522535353,0.84339108,4305.1,4305.0,0.00282739]
[1756522535558,1.25771108,4305.1,4305.0,0.00282739]
[1756522536157,5.49000109,4305.1,4305.0,0.00282739]
[1756522536354,1.25771108,4305.1,4305.0,0.00282739]
[1756522536554,1.25771108,4305.1,4305.0,0.64802739]
[1756522537156,1.25771108,4305.1,4305.0,0.00282739]
[1756522541957,1.0646,4305.1,4305.0,0.00282739]
[1756522542261,1.25714736,4305.1,4305.0,0.00282739]
[1756522542658,1.2571138,4305.1,4305.0,0.00282739]
[1756522543458,1.4931138,4305.1,4305.0,0.00282739]
[1756522543664,1.2571138,4305.1,4305.0,0.00282739]
[1756522544762,1.2571138,4305.1,4305.0,1.02862739]
[1756522544963,1.0646,4305.1,4305.0,1.02862739]
[1756522545266,1.25706249,4305.1,4305.0,0.00282739]
[1756522546064,1.25706249,4305.1,4305.0,1.02862739]
[1756522548665,0.61046249,4305.1,4305.0,1.02862739]
[1756522550570,0.19246249,4305.1,4305.0,1.02862739]
[1756522551164,0.62316249,4305.1,4305.0,1.02862739]
[1756522551365,1.25156249,4305.1,4305.0,1.02862739]
[1756522552467,1.0591,4305.1,4305.0,0.00282739]
[1756522552658,1.25185187,4305.1,4305.0,0.00282739]
[1756522553472,1.25185187,4305.1,4305.0,1.02862739]
[1756522554467,0.62345187,4305.1,4305.0,1.02862739]
[1756522554865,1.25185187,4305.1,4305.0,0.62022739]
[1756522555370,1.25185187,4305.1,4305.0,1.02862739]
[1756522560669,0.19275187,4305.1,4305.0,1.02862739]
[1756522561774,3.2078,4305.3,4305.0,1.02862739]
[1756522561975,0.82206354,4305.2,4305.1,0.6174]
[1756522562175,0.82206354,4305.2,4305.1,1.0258]
[1756522562576,0.19366354,4305.2,4305.1,1.0258]
[1756522563677,0.19366354,4305.2,4305.1,5.0258]
[1756522564979,0.19366354,4305.2,4305.1,5.44384]
[1756522565471,4.2669,4306.3,4306.2,0.4084]
[1756522565682,4.46330664,4306.3,4306.2,1.0258]
[1756522567875,1.25550664,4306.3,4306.2,1.0258]
[1756522572481,1.0591,4306.3,4306.2,1.0258]
[1756522573484,0.9834,4306.4,4306.3,0.9784]
[1756522576486,0.3933,4306.4,4306.3,0.9784]
[1756522576680,0.5901,4306.7,4306.3,0.9784]
[1756522576880,0.9834,4306.8,4306.7,0.9784]
[1756522577689,1.17675659,4306.8,4306.7,0.9784]
[1756522582990,1.17670198,4306.8,4306.7,0.9784]
[1756522583183,1.17670198,4306.8,4306.7,1.2144]
[1756522583779,0.19330198,4306.8,4306.7,1.2144]
[1756522585486,0.19330198,4306.8,4306.7,5.2144]
[1756522586381,3.7979,4307.4,4307.3,0.3916]
[1756522586581,4.38443598,4307.4,4307.3,1.2144]
[1756522586987,3.40103598,4307.4,4307.3,1.2144]
[1756522587180,4.38443598,4307.4,4307.3,1.2144]
[1756522589290,1.17663598,4307.4,4307.3,1.2144]
[1756522589789,1.17660085,4307.4,4307.3,1.2144]
[1756522590186,0.19320085,4307.4,4307.3,1.2144]
[1756522590389,0.9834,4308.1,4308.0,0.3916]
[1756522590589,1.17652077,4308.1,4308.0,1.2144]
[1756522592496,0.9834,4308.1,4308.0,1.2144]
[1756522593690,0.9834,4308.1,4308.0,0.9784]
[1756522593892,0.9834,4307.1,4307.0,0.9784]
[1756522594189,0.9834,4307.1,4307.0,1.2144]
[1756522594398,0.9834,4307.9,4307.8,0.9784]
[1756522594601,0.9834,4307.9,4307.8,1.2144]
[1756522597997,0.5977,4308.2,4308.1,0.3752]
[1756522598295,0.5977,4308.2,4308.1,0.9818]
[1756522598296,0.9867,4308.2,4308.1,0.9818]
[1756522607103,0.9867,4308.2,4307.8,0.236]
[1756522607401,0.9867,4308.2,4308.0,0.6066]
[1756522608190,0.9867,4308.2,4307.5,0.6066]
[1756522608389,0.9867,4308.2,4307.6,0.236]
[1756522608590,0.23214,4308.1,4307.6,0.236]
[1756522608797,0.9867,4307.7,4307.6,0.236]
[1756522609397,0.9867,4307.7,4307.3,3.2078]
[1756522609702,0.389,4307.5,4307.4,0.8426]
[1756522609897,0.9867,4307.5,4307.4,0.8426]
[1756522610298,0.9867,4307.5,4307.4,1.2178]
[1756522611102,3.2078,4308.5,4307.4,1.2178]
[1756522611304,0.82983,4308.4,4307.5,0.6066]
[1756522611696,0.5977,4308.2,4307.5,0.6066]
[1756522612306,0.9867,4308.2,4308.1,0.9818]
[1756522613206,0.9867,4308.2,4307.9,0.8426]
[1756522613506,0.9867,4308.0,4307.9,1.2178]
[1756522629120,0.5887,4308.3,4307.9,1.2178]
[1756522629318,3.6179,4308.5,4308.4,0.4095]
[1756522629618,3.6179,4308.5,4308.4,0.9925]
[1756522629818,0.4101,4308.5,4308.4,0.9925]
[1756522630116,0.9988,4308.5,4308.4,0.9925]
[1756522638216,0.5887,4309.0,4308.5,0.583]
[1756522638519,0.9988,4309.0,4308.9,0.9925]
[1756522639523,0.9988,4309.4,4309.3,0.9925]
[1756522640113,0.5887,4309.6,4309.5,0.4095]
[1756522640619,0.5887,4309.6,4309.5,0.9925]
[1756522640819,0.9988,4309.6,4309.5,0.9925]
[1756522645523,0.4101,4309.6,4309.5,0.9925]
[1756522645826,3.2078,4309.7,4309.6,0.9925]
[1756522646824,3.7965,4309.7,4309.6,0.9925]
[1756522647217,0.5887,4309.7,4309.6,0.9925]
[1756522647815,0.5887,4309.6,4308.9,0.583]
[1756522648020,0.9988,4308.9,4308.8,0.819]
[1756522648422,0.5887,4308.8,4308.3,33.435]
[1756522648723,0.9988,4308.4,4308.3,34.018]
[1756522648931,0.9988,4308.4,4308.3,34.254]
[1756522649227,0.9988,4308.4,4308.3,34.018]
[1756522649531,0.9988,4308.4,4308.3,34.254]
[1756522649826,0.9988,4308.4,4308.3,0.819]
[1756522650027,0.9988,4308.4,4308.3,0.583]
[1756522650225,0.9988,4308.4,4308.3,0.819]
[1756522651326,0.9988,4308.4,4308.3,1.2285]
[1756522653832,0.4101,4308.4,4307.7,0.583]
[1756522654032,0.4101,4308.4,4307.6,3.2078]
[1756522654033,0.9988,4308.3,4308.2,0.236]
[1756522654431,0.9988,4308.3,4308.2,1.2285]
[1756522656232,0.4101,4307.8,4307.7,0.9925]
[1756522656431,0.9988,4307.8,4307.7,1.2285]
[1756522657533,0.9988,4307.8,4307.6,3.2078]
[1756522657732,3.2078,4308.7,4307.5,0.236]
[1756522657733,0.5535,4307.7,4307.5,0.236]
[1756522657934,0.9397,4307.6,4307.5,0.236]
[1756522658234,0.9397,4307.6,4307.5,1.1803]
[1756522658835,0.9397,4307.4,4307.3,33.429]
[1756522659035,0.9397,4307.4,4307.3,33.665]
[1756522659239,0.9397,4307.4,4307.3,33.429]
[1756522659439,0.9397,4307.4,4307.3,33.665]
[1756522659631,0.9397,4307.4,4306.9,3.2078]
[1756522659836,0.9397,4307.1,4307.0,1.1803]
[1756522661033,0.9397,4307.1,4307.0,0.3813]
[1756522661238,0.9397,4307.0,4306.9,4.1521]
[1756522661541,0.9397,4307.0,4306.9,4.3881]
[1756522664043,0.9397,4307.0,4306.9,4.1521]
[1756522664245,0.9397,4307.0,4306.9,4.3881]
[1756522666439,0.9397,4307.0,4306.9,1.1803]
[1756522671048,3.2078,4307.5,4306.9,1.1803]
[1756522671049,0.9397,4307.5,4307.4,0.3813]
[1756522671244,0.9397,4307.5,4307.4,1.1803]
[1756522674050,0.3862,4307.5,4307.4,1.1803]
[1756522674547,3.594,4308.0,4307.9,0.3813]
[1756522674749,3.594,4308.0,4307.9,0.9443]
[1756522675144,4.1475,4308.0,4307.9,0.9443]
[1756522679945,0.9397,4308.0,4307.9,0.9443]
[1756522680145,4.1475,4308.0,4307.9,0.9443]
[1756522687353,4.1475,4308.0,4307.1,0.5701]
[1756522687652,4.1475,4308.0,4307.3,0.5701]
[1756522691154,4.1475,4308.0,4306.8,3.2078]
[1756522691463,0.3743,4307.0,4306.9,1.19206]
[1756522691762,0.9332,4307.0,4306.9,1.19206]
[1756522691962,0.9332,4307.0,4306.9,0.9599]
[1756522693461,0.9332,4307.0,4306.8,0.235]
[1756522693963,0.9332,4307.0,4306.6,0.5701]
[1756522694263,0.9332,4306.7,4306.6,0.235]
[1756522694468,0.9332,4306.7,4306.6,0.8051]
[1756522694959,0.3743,4306.0,4305.9,33.432]
[1756522695158,0.9332,4306.0,4305.9,34.2371]
[1756522696659,0.9332,4306.0,4305.9,34.0021]
[1756522697661,0.9332,4306.0,4305.9,34.2371]
[1756522699558,0.9332,4306.0,4305.9,34.0021]
[1756522699760,0.9332,4306.0,4305.2,0.5701]
[1756522700054,0.9332,4306.0,4305.7,0.235]
[1756522700259,0.9332,4306.0,4305.9,0.9599]
[1756522701665,0.9332,4306.0,4305.9,0.3898]
[1756522701866,0.9332,4306.0,4305.9,0.9599]
[1756522704569,0.3743,4305.5,4305.4,0.6248]
[1756522704772,0.9332,4305.5,4305.4,1.1949]
[1756522710666,3.2078,4306.6,4305.5,0.5701]
[1756522710964,0.3743,4306.0,4305.9,0.9599]
[1756522711368,0.9332,4306.0,4305.9,0.9599]
[1756522722074,0.3766,4305.1,4305.0,4.12042739]
[1756522722280,0.9211,4305.1,4305.0,0.91262739]